bitfinex/quotes_SOLUSD_20250507
["timestamp","ask_amount","ask_price","bid_price","bid_amount"]
[1746579995606,137.84216157,149.55,149.51,17.96]
[1746579996101,163.84216157,149.55,149.51,17.96]
[1746579996301,137.7,149.54,149.51,17.96]
[1746579996495,137.7,149.53,149.51,17.96]
[1746579996682,137.7,149.53,149.48,17.84]
[1746579996884,137.7,149.52,149.48,24.52972753]
[1746579997502,137.7,149.52,149.48,17.84]
[1746579998002,144.38807855,149.52,149.48,17.84]
[1746579998202,137.7,149.51,149.47,17.94]
[1746579999304,137.7,149.5,149.47,17.94]
[1746579999496,137.7,149.49,149.47,17.94]
[1746580000306,137.7,149.48,149.43,42.41200098]
[1746580000506,137.7,149.47,149.43,35.72]
[1746580000896,137.7,149.46,149.43,35.72]
[1746580001204,137.7,149.45,149.43,17.96]
[1746580004624,137.7,149.44,149.43,17.96]
[1746580004925,137.7,149.44,149.39,17.72]
[1746580005101,137.7,149.44,149.39,24.41384871]
[1746580005102,137.7,149.43,149.39,24.41384871]
[1746580005302,144.39227248,149.43,149.39,17.72]
[1746580005505,137.7,149.42,149.38,35.42]
[1746580007315,137.7,149.42,149.39,23.42860966]
[1746580007521,137.7,149.42,149.39,41.12860966]
[1746580009317,137.7,149.41,149.39,6.69388847]
[1746580009516,26.0,149.38,149.35,6.69568128]
[1746580009722,26.0,149.4,149.35,6.69568128]
[1746580012223,26.0,149.4,149.34,42.11604367]
[1746580012224,137.7,149.39,149.34,42.11604367]
[1746580012728,137.7,149.39,149.34,58.85636776]
[1746580013223,137.7,149.39,149.34,92.33701594]
[1746580013716,137.7,149.42,149.35,26.0]
[1746580015325,137.7,149.42,149.36,23.43331547]
[1746580020932,137.7,149.41,149.36,6.69523299]
[1746580021120,0.14216157,149.4,149.35,6.69555346]
[1746580021426,137.7,149.39,149.35,6.69555346]
[1746580021632,137.7,149.38,149.34,24.41605017]
[1746580021804,144.39441642,149.38,149.34,17.72]
[1746580022011,137.84216157,149.37,149.34,17.72]
[1746580022602,137.7,149.36,149.34,17.72]
[1746580022807,137.7,149.35,149.34,17.72]
[1746580024425,137.7,149.35,149.34,24.41612963]
[1746580026030,137.7,149.38,149.34,41.15645372]
[1746580027339,137.7,149.38,149.34,24.41612963]
[1746580029331,137.84216157,149.37,149.34,17.72]
[1746580029538,137.84216157,149.37,149.31,6.69733648]
[1746580029719,137.7,149.36,149.31,6.69733648]
[1746580032533,144.2879,149.36,149.31,6.69733648]
[1746580032836,6.69612963,149.34,149.3,17.72]
[1746580033043,137.7,149.33,149.3,17.72]
[1746580033454,137.84216157,149.32,149.27,6.69908304]
[1746580033623,137.7,149.31,149.27,6.69908304]
[1746580033825,137.7,149.3,149.26,24.4395455]
[1746580034148,137.7,149.3,149.26,41.9795455]
[1746580034813,137.7,149.29,149.26,35.28]
[1746580035018,51.48926456,149.32,149.26,24.43951983]
[1746580035019,137.7,149.28,149.26,24.43951983]
[1746580040648,137.7,149.27,149.26,24.43951983]
[1746580041855,137.7,149.27,149.23,250.94]
[1746580042022,137.7,149.26,149.23,250.94]
[1746580042351,137.7,149.26,149.24,6.70045651]
[1746580046739,137.7,149.3,149.24,23.45199765]
[1746580046943,137.7,149.31,149.24,23.45199765]
[1746580047161,144.39763802,149.31,149.24,23.45199765]
[1746580047462,0.14216157,149.3,149.24,6.70045651]
[1746580047658,18.79181043,149.3,149.24,6.70045651]
[1746580047839,0.14216157,149.28,149.24,6.70045651]
[1746580048044,137.7,149.27,149.23,257.6408923]
[1746580049369,137.7,149.27,149.23,6.7008923]
[1746580049840,137.7,149.27,149.23,24.2408923]
[1746580050568,137.7,149.27,149.23,6.7008923]
[1746580050742,137.7,149.27,149.23,24.2408923]
[1746580051367,137.7,149.27,149.23,40.99355597]
[1746580052068,137.7,149.27,149.23,24.2408923]
[1746580052245,137.7,149.27,149.23,6.7008923]
[1746580052760,137.7,149.26,149.23,6.7008923]
[1746580054875,26.0,149.28,149.22,24.22131397]
[1746580054876,137.7,149.25,149.22,24.22131397]
[1746580055071,137.7,149.24,149.22,17.52]
[1746580055646,137.84216157,149.23,149.22,17.52]
[1746580055875,137.84216157,149.23,149.19,6.70259662]
[1746580056057,137.7,149.22,149.18,24.2431248]
[1746580058067,137.7,149.22,149.18,41.00140338]
[1746580061561,137.7,149.26,149.18,74.51796055]
[1746580061760,137.7,149.25,149.18,74.51796055]
[1746580063091,137.7,149.25,149.19,7.9079]
[1746580064379,137.7,149.25,149.2,23.45844503]
[1746580066190,137.7,149.28,149.21,18.79181043]
[1746580066357,137.7,149.31,149.21,18.79181043]
[1746580066676,137.7,149.31,149.24,1.5737]
[1746580066871,137.7,149.31,149.25,35.06]
[1746580067682,137.7,149.3,149.25,35.06]
[1746580067990,163.7,149.3,149.25,17.52]
[1746580068172,0.14216157,149.29,149.25,17.52]
[1746580068683,0.14216157,149.29,149.25,24.22004484]
[1746580068875,163.7,149.3,149.25,24.22004484]
[1746580069269,137.7,149.3,149.25,40.9704636]
[1746580069661,137.7,149.3,149.26,8.2886]
[1746580070285,137.7,149.34,149.28,18.64964886]
[1746580070490,137.7,149.4,149.29,43.52]
[1746580070780,137.7,149.4,149.31,1.5414]
[1746580070958,137.7,149.4,149.32,17.52]
[1746580071493,137.7,149.4,149.32,43.52]
[1746580071888,137.7,149.4,149.32,17.52]
[1746580072390,137.7,149.39,149.32,17.52]
[1746580072769,137.7,149.39,149.33,6.69657804]
[1746580074584,144.39388918,149.39,149.33,6.69657804]
[1746580074901,144.39388918,149.39,149.32,24.21693932]
[1746580075070,0.14216157,149.38,149.32,24.21693932]
[1746580075491,137.7,149.39,149.32,24.21693932]
[1746580075873,137.7,149.39,149.32,40.95950562]
[1746580076298,137.7,149.46,149.36,0.14216157]
[1746580076472,137.7,149.46,149.37,17.52]
[1746580076795,137.7,149.44,149.38,17.52]
[1746580076976,0.14216157,149.43,149.38,24.2141954]
[1746580077183,137.7,149.44,149.38,24.2141954]
[1746580077789,137.7,149.44,149.38,25.8195954]
[1746580078097,137.7,149.44,149.38,42.55543687]
[1746580078476,137.7,149.44,149.38,24.2141954]
[1746580079083,137.7,149.44,149.38,41.7341954]
[1746580079685,137.7,149.44,149.38,58.47003687]
[1746580081102,137.7,149.44,149.38,41.7341954]
[1746580082592,137.7,149.44,149.38,58.47003687]
[1746580084306,137.7,149.44,149.39,20.31104886]
[1746580084611,6.0714,149.53,149.43,26.0]
[1746580084612,137.7,149.48,149.43,26.0]
[1746580084816,5.35262205,149.55,149.45,26.0]
[1746580084817,137.7,149.52,149.45,26.0]
[1746580085115,137.7,149.51,149.46,1.6614]
[1746580085312,137.7,149.51,149.47,6.69030574]
[1746580085885,137.7,149.51,149.46,6.69061805]
[1746580086885,137.84216157,149.5,149.44,35.04]
[1746580087283,137.84216157,149.5,149.44,41.73160404]
[1746580087483,137.7,149.5,149.44,41.73160404]
[1746580088386,144.3890163,149.5,149.44,35.04]
[1746580088609,144.3890163,149.5,149.44,41.73141548]
[1746580088780,137.7,149.5,149.44,41.73141548]
[1746580089497,137.7,149.5,149.44,58.46053753]
[1746580090209,137.7,149.54,149.45,44.64964886]
[1746580090590,137.7,149.54,149.46,6.1395]
[1746580090795,137.7,149.54,149.45,44.64964886]
[1746580090986,137.7,149.54,149.44,58.46053753]
[1746580091186,163.84216157,149.53,149.44,58.46053753]
[1746580091396,0.14216157,149.51,149.44,41.73141548]
[1746580091603,18.79181043,149.51,149.44,41.73141548]
[1746580091787,18.79181043,149.49,149.44,17.52]
[1746580091988,137.7,149.48,149.44,17.52]
[1746580092582,137.7,149.48,149.44,24.21151245]
[1746580092811,26.0,149.5,149.44,40.9406345]
[1746580093007,137.7,149.49,149.44,24.21151245]
[1746580093201,0.14216157,149.48,149.44,17.52]
[1746580093386,137.7,149.49,149.44,17.52]
[1746580093713,137.7,149.49,149.44,34.211645]
[1746580094707,137.7,149.49,149.44,50.94076705]
[1746580095113,137.7,149.49,149.44,34.211645]
[1746580095719,137.7,149.49,149.44,27.52]
[1746580095902,0.14216157,149.48,149.44,27.52]
[1746580096107,18.79181043,149.48,149.44,10.0]
[1746580096489,137.7,149.47,149.44,10.0]
[1746580096918,0.14216157,149.46,149.44,10.0]
[1746580097218,137.7,149.45,149.44,10.0]
[1746580098407,137.84216157,149.45,149.44,10.0]
[1746580100099,0.14216157,149.45,149.44,10.0]
[1746580102207,25.4830115,149.45,149.44,10.0]
[1746580102526,51.4830115,149.45,149.44,10.0]
[1746580103122,25.4830115,149.45,149.44,10.0]
[1746580103499,51.4830115,149.45,149.44,10.0]
[1746580103707,25.4830115,149.45,149.44,10.0]
[1746580104100,51.4830115,149.45,149.44,10.0]
[1746580104319,25.4830115,149.45,149.44,10.0]
[1746580104522,51.4830115,149.45,149.44,10.0]
[1746580104904,25.4830115,149.45,149.44,10.0]
[1746580105317,26.0,149.42,149.37,6.69478476]
[1746580105521,127.7,149.41,149.37,6.69478476]
[1746580105729,127.7,149.41,149.37,23.43174666]
[1746580106407,127.7,149.41,149.36,24.1951122]
[1746580107130,127.7,149.4,149.36,17.5]
[1746580107303,127.7,149.4,149.36,24.19519045]
[1746580108237,127.7,149.4,149.36,17.5]
[1746580108629,127.7,149.4,149.36,24.19519639]
[1746580108833,127.84216157,149.39,149.32,17.5]
[1746580109040,127.7,149.38,149.32,17.5]
[1746580109207,18.79181043,149.37,149.32,17.5]
[1746580109944,0.14216157,149.35,149.32,17.5]
[1746580110111,127.7,149.34,149.32,17.5]
[1746580110304,127.7,149.34,149.29,6.69827729]
[1746580110630,127.7,149.33,149.28,24.19869662]
[1746580112932,127.7,149.33,149.28,40.94574913]
[1746580114132,127.7,149.33,149.28,74.43985416]
[1746580114929,26.0,149.38,149.31,1.5729]
[1746580115133,127.7,149.39,149.31,1.5729]
[1746580115307,127.7,149.38,149.31,1.5729]
[1746580115915,146.49181043,149.37,149.31,1.5729]
[1746580116207,146.49181043,149.37,149.28,40.94574913]
[1746580116403,127.7,149.36,149.28,40.94574913]
[1746580116729,0.14216157,149.35,149.28,40.94574913]
[1746580118209,127.7,149.34,149.28,24.19869662]
[1746580118414,127.7,149.33,149.28,41.71869662]
[1746580118811,127.7,149.33,149.28,24.19869662]
[1746580119031,0.14216157,149.32,149.28,24.19869662]
[1746580121733,127.7,149.31,149.28,24.19869662]
[1746580124041,127.7,149.3,149.28,17.5]
[1746580124343,127.7,149.3,149.26,6.69954091]
[1746580125432,127.7,149.3,149.25,6.7001675]
[1746580125633,127.7,149.29,149.25,6.7001675]
[1746580127630,127.7,149.29,149.25,23.45058626]
[1746580128641,127.7,149.29,149.25,6.7001675]
[1746580128939,44.64964886,149.33,149.24,17.5]
[1746580128940,127.84216157,149.28,149.24,17.5]
[1746580129741,0.14216157,149.22,149.15,1.5662]
[1746580130230,127.7,149.21,149.15,1.5662]
[1746580130431,127.7,149.21,149.15,19.0862]
[1746580130640,0.14216157,149.2,149.15,1.5662]
[1746580131018,127.7,149.19,149.14,35.02]
[1746580131220,127.7,149.18,149.14,35.02]
[1746580131725,127.7,149.17,149.14,17.5]
[1746580133121,127.7,149.17,149.14,24.20506166]
[1746580136762,127.7,149.16,149.14,24.20506166]
[1746580136929,127.7,149.15,149.14,24.20506166]
[1746580142139,127.7,149.2,149.14,40.96783489]
[1746580142338,127.7,149.19,149.14,40.96783489]
[1746580144857,127.7,149.19,149.14,24.20506166]
[1746580145448,127.7,149.19,149.14,40.96783489]
[1746580147964,127.7,149.18,149.12,6.70558711]
[1746580148163,153.7,149.18,149.12,6.70558711]
[1746580148364,0.14216157,149.17,149.12,6.70558711]
[1746580148669,127.7,149.16,149.12,24.22558711]
[1746580151463,127.7,149.16,149.12,17.52]
[1746580151668,127.7,149.15,149.12,17.52]
[1746580152167,127.7,149.15,149.11,25.82737864]
[1746580152375,127.7,149.15,149.11,24.22637864]
[1746580152664,127.7,149.15,149.11,17.52]
[1746580153242,26.0,149.12,149.11,17.52]
[1746580153537,26.0,149.12,149.08,24.22752853]
[1746580153741,137.7,149.11,149.07,25.84952469]
[1746580153964,137.7,149.11,149.07,43.36952469]
[1746580154455,137.7,149.11,149.07,41.74812469]
[1746580154641,137.7,149.11,149.07,24.22812469]
[1746580155564,137.7,149.11,149.07,40.99876935]
[1746580157566,137.7,149.1,149.07,40.99876935]
[1746580158076,137.7,149.1,149.07,24.22812469]
[1746580161148,137.7,149.1,149.07,40.99876935]
[1746580162573,137.7,149.1,149.07,24.22812469]
[1746580163170,137.7,149.1,149.07,17.52]
[1746580163565,137.7,149.09,149.07,17.52]
[1746580163768,137.7,149.08,149.07,24.22825786]
[1746580167467,137.7,149.08,149.07,17.52]
[1746580167972,137.7,149.08,149.07,24.22825786]
[1746580172082,137.7,149.08,149.07,17.52]
[1746580174087,137.7,149.08,149.07,24.22825786]
[1746580175091,137.7,149.08,149.07,17.52]
[1746580175689,26.0,149.1,149.07,17.52]
[1746580175891,26.0,149.1,149.06,6.70867197]
[1746580177079,26.0,149.1,149.04,6.70960815]
[1746580177278,137.7,149.07,149.04,6.70960815]
[1746580179462,137.7,149.07,149.04,23.48362854]
[1746580183094,137.7,149.07,149.04,6.70960815]
[1746580184092,137.7,149.07,149.04,23.48362854]
[1746580186698,137.7,149.07,149.04,6.70960815]
[1746580187513,137.7,149.06,149.03,36.5745]
[1746580187670,137.7,149.06,149.03,24.22994353]
[1746580188197,137.7,149.06,149.03,17.52]
[1746580189081,137.7,149.06,149.02,6.71025734]
[1746580189281,144.40873179,149.06,149.0,6.71140939]
[1746580189485,137.7,149.06,149.0,6.71140939]
[1746580189998,144.40879803,149.06,149.0,6.71140939]
[1746580190788,137.7,149.06,149.0,6.71140939]
[1746580193396,26.0,149.06,149.0,23.48993287]
[1746580194075,26.0,149.07,149.0,23.48993287]
[1746580196175,26.0,149.07,149.0,57.04697984]
[1746580196495,26.0,149.09,149.0,57.04697984]
[1746580196799,163.7,149.08,149.0,57.04697984]
[1746580197003,137.7,149.08,149.0,57.04697984]
[1746580200201,137.7,149.07,149.01,17.48]
[1746580202411,137.7,149.07,149.02,6.71050865]
[1746580203108,137.7,149.07,149.02,23.48678029]
[1746580204282,137.7,149.07,149.03,17.48]
[1746580204791,137.7,149.07,149.04,6.70960815]
[1746580208405,26.0,149.06,149.03,24.19000193]
[1746580209810,26.0,149.06,149.03,17.48]
[1746580210016,26.0,149.06,149.03,24.19003586]
[1746580210697,26.0,149.06,149.03,17.48]
[1746580211615,137.7,149.05,149.03,17.48]
[1746580214622,137.7,149.04,149.03,17.48]
[1746580215332,137.7,149.04,149.0,6.71112697]
[1746580216318,137.7,149.04,149.0,23.48965045]
[1746580221495,137.7,149.04,149.0,40.92965045]
[1746580222314,137.7,149.04,149.0,23.48965045]
[1746580222493,137.7,149.04,149.0,40.92965045]
[1746580225129,137.7,149.04,149.0,24.15112697]
[1746580227628,137.7,149.04,149.0,6.71112697]
[1746580228829,137.7,149.04,149.0,23.48965045]
[1746580229920,137.7,149.04,149.0,6.71112697]
[1746580230425,137.7,149.04,149.0,23.48965045]
[1746580233124,137.7,149.04,149.01,17.42]
[1746580234015,137.7,149.04,149.02,6.71050865]
[1746580238540,137.7,149.07,149.02,23.48678029]
[1746580243942,26.0,149.06,149.02,23.48678029]
[1746580244247,26.0,149.06,149.02,6.71050865]
[1746580244541,137.7,149.05,149.02,6.71050865]
[1746580247139,137.7,149.04,149.02,6.71050865]
[1746580247344,137.7,149.04,149.01,24.15075562]
[1746580251827,137.7,149.04,149.01,40.92815311]
[1746580252021,137.7,149.1,149.01,40.92815311]
[1746580252227,137.7,149.09,149.01,40.92815311]
[1746580252427,163.7,149.08,149.01,40.92815311]
[1746580257543,170.40784325,149.08,149.01,24.15075562]
[1746580258348,170.40784325,149.08,149.01,41.53075562]
[1746580259553,137.7,149.07,149.01,41.53075562]
[1746580260257,144.40835974,149.07,149.01,41.53075562]
[1746580263351,137.7,149.07,149.01,41.53075562]
[1746580264558,144.40828594,149.07,149.01,41.53075562]
[1746580264937,137.7,149.06,149.01,41.53075562]
[1746580265855,137.7,149.06,149.01,24.15075562]
[1746580267462,137.7,149.06,149.01,17.44]
[1746580267463,137.7,149.05,149.01,17.44]
[1746580267663,137.7,149.04,149.01,17.44]
[1746580268648,137.7,149.03,149.01,17.44]
[1746580268866,26.0,149.02,148.97,25.75426818]
[1746580269157,137.7,149.01,148.97,25.75426818]
[1746580269355,137.7,149.01,148.97,24.11246818]
[1746580269941,137.7,149.0,148.97,17.4]
[1746580270757,137.7,149.0,148.97,24.11272196]
[1746580272376,26.0,149.02,148.97,40.89462435]
[1746580275276,26.0,149.01,148.97,24.11272196]
[1746580275872,137.7,149.0,148.97,17.4]
[1746580276075,137.7,149.0,148.97,24.11260215]
[1746580277070,26.0,149.01,148.97,24.11260215]
[1746580277671,26.0,149.0,148.97,24.11260215]
[1746580277849,137.7,148.99,148.97,17.4]
[1746580279775,137.7,148.99,148.97,24.11274647]
[1746580280778,137.7,148.99,148.97,17.4]
[1746580285474,137.7,148.99,148.95,6.71348336]
[1746580285784,144.41189309,148.99,148.94,6.71392659]
[1746580286090,144.41189309,148.99,148.93,24.05440115]
[1746580286091,137.7,148.98,148.93,24.05440115]
[1746580287586,144.41252175,148.98,148.93,24.05440115]
[1746580287884,26.0,148.95,148.93,24.05440115]
[1746580288271,163.7,148.98,148.93,24.05440115]
[1746580289185,163.7,148.98,148.93,40.84081087]
[1746580295486,163.7,148.98,148.94,1.6558]
[1746580297792,163.7,148.98,148.95,6.7136623]
[1746580299073,163.7,148.98,148.93,6.71456388]
[1746580299483,137.7,148.97,148.93,6.71456388]
[1746580300098,144.412821,148.97,148.92,24.07487392]
[1746580300281,137.7,148.97,148.92,24.07487392]
[1746580301588,137.7,148.97,148.92,40.86241085]
[1746580301990,137.7,148.97,148.92,40.36241085]
[1746580303790,137.7,148.97,148.92,23.57487392]
[1746580308498,144.41281268,148.97,148.92,23.57487392]
[1746580309305,137.7,148.97,148.92,23.57487392]
[1746580310503,137.7,148.96,148.92,23.57487392]
[1746580311919,163.7,148.95,148.92,16.86]
[1746580312101,137.7,148.94,148.92,16.86]
[1746580312607,137.7,148.93,148.92,16.86]
[1746580313479,137.7,148.93,148.92,23.57501477]
[1746580316191,137.7,148.93,148.92,16.86]
[1746580316592,137.7,148.93,148.89,6.71636778]
[1746580316787,137.7,148.92,148.89,6.71636778]
[1746580317285,26.0,148.9,148.88,24.01676034]
[1746580317486,137.7,148.91,148.88,24.01676034]
[1746580318405,137.7,148.91,148.88,40.80880762]
[1746580320087,137.7,148.91,148.89,1.6288]
[1746580322016,137.7,148.91,148.9,6.71591672]
[1746580331227,137.7,148.97,148.9,23.50570852]
[1746580331410,26.0,148.96,148.9,23.50570852]
[1746580331716,137.7,149.02,148.91,18.64964886]
[1746580331924,137.7,149.0,148.92,0.14216157]
[1746580332115,137.7,149.0,148.94,23.49939572]
[1746580332314,137.7,149.0,148.95,17.26]
[1746580334023,137.7,149.0,148.96,42.14588946]
[1746580336634,26.0,149.04,148.98,18.64964886]
[1746580336826,26.0,149.04,148.99,17.3]
[1746580337002,137.7,149.06,149.0,17.26]
[1746580337408,163.7,149.06,149.0,17.26]
[1746580337640,163.7,149.06,149.01,6.71095899]
[1746580340332,26.0,149.02,148.99,17.3]
[1746580340535,26.0,149.01,148.99,17.3]
[1746580342931,26.0,149.01,148.95,6.7136623]
[1746580343126,26.0,149.01,148.96,17.24]
[1746580345021,137.7,149.02,148.97,6.71276095]
[1746580349228,144.41071003,149.02,148.97,6.71276095]
[1746580349412,137.7,149.01,148.97,6.71276095]
[1746580349615,26.0,149.0,148.96,17.24]
[1746580351931,26.0,148.97,148.96,17.24]
[1746580352733,26.0,148.97,148.94,6.71408288]
[1746580356338,26.0,148.97,148.94,23.49936554]
[1746580356521,137.7,148.98,148.94,23.49936554]
[1746580356728,137.7,149.03,148.95,1.6069]
[1746580356923,137.7,149.02,148.95,1.6069]
[1746580357837,163.7,149.02,148.96,6.7132116]
[1746580358037,163.7,149.02,148.97,17.22]
[1746580359746,137.7,149.02,148.98,17.24]
[1746580359925,137.7,149.02,148.99,6.71185985]
[1746580362442,137.7,149.02,148.98,23.95216437]
[1746580362635,137.7,149.01,148.98,17.24]
[1746580362947,26.0,148.99,148.98,17.24]
[1746580364131,26.0,148.98,148.96,6.71308615]
[1746580365750,26.0,148.98,148.95,6.71343715]
[1746580370836,26.0,148.98,148.95,23.4975929]
[1746580372766,26.0,148.98,148.95,6.71343715]
[1746580373051,137.7,148.99,148.95,6.71343715]
[1746580373259,163.7,148.99,148.95,6.71343715]
[1746580376858,163.7,148.99,148.95,23.4975929]
[1746580380448,137.7,148.99,148.95,23.4975929]
[1746580381041,137.7,148.99,148.95,6.71343715]
[1746580382259,137.7,148.99,148.95,23.4975929]
[1746580384371,26.0,149.01,148.95,23.4975929]
[1746580384944,26.0,149.01,148.96,1.5067]
[1746580385865,26.0,149.01,148.97,23.49466334]
[1746580386050,26.0,149.01,148.98,17.16]
[1746580386348,26.0,149.01,148.99,17.18]
[1746580386849,137.7,149.04,148.99,17.18]
[1746580389076,137.7,149.04,149.0,23.48993287]
[1746580389659,137.7,149.09,149.02,18.64964886]
[1746580389866,137.7,149.09,149.03,17.16]
[1746580390050,163.7,149.09,149.04,17.18]
[1746580390255,170.40736801,149.09,149.04,17.18]
[1746580390578,163.7,149.09,149.04,17.18]
[1746580391167,163.7,149.09,149.05,6.709158]
[1746580391370,137.7,149.08,149.05,6.709158]
[1746580391848,137.7,149.08,149.04,41.04945505]
[1746580394450,137.7,149.07,149.04,41.04945505]
[1746580396364,137.7,149.07,149.04,57.82347544]
[1746580406185,137.7,149.07,149.04,41.04945505]
[1746580406502,137.7,149.07,149.04,23.88949664]
[1746580407595,137.7,149.07,149.04,17.18]
[1746580407889,26.0,149.05,149.04,17.18]
[1746580408284,26.0,149.04,149.0,17.12]
[1746580408588,26.0,149.01,149.0,17.12]
[1746580409392,26.0,149.01,148.97,6.71238223]
[1746580415405,137.7,149.02,148.97,23.49428462]
[1746580417891,137.7,149.02,148.98,1.5922]
[1746580418276,26.0,149.06,148.98,1.5922]
[1746580419796,26.0,149.06,148.99,23.49150949]
[1746580419984,26.0,149.06,149.0,17.1]
[1746580420186,26.0,149.06,149.01,17.12]
[1746580421896,26.0,149.08,149.02,23.48678029]
[1746580422095,26.0,149.07,149.02,23.48678029]
[1746580422301,137.7,149.1,149.03,1.6047]
[1746580422618,163.7,149.1,149.03,1.6047]
[1746580422911,137.7,149.1,149.04,18.64964886]
[1746580423212,26.0,149.11,149.05,17.1]
[1746580423407,26.0,149.1,149.06,17.12]
[1746580423615,137.7,149.13,149.06,17.12]
[1746580423793,163.7,149.13,149.07,23.47890252]
[1746580424606,137.7,149.13,149.07,23.47890252]
[1746580424899,163.7,149.13,149.07,23.47890252]
[1746580426408,170.40561919,149.13,149.07,6.70825786]
[1746580429013,163.7,149.13,149.07,6.70825786]
[1746580429387,170.40557366,149.13,149.07,6.70825786]
[1746580430318,170.40557366,149.13,149.06,40.90862031]
[1746580430488,137.7,149.12,149.06,40.90862031]
[1746580431104,137.7,149.12,149.06,57.68039006]
[1746580433117,137.7,149.12,149.06,40.90862031]
[1746580434824,144.40607396,149.12,149.06,40.88862031]
[1746580435334,26.0,149.07,149.02,6.71050865]
[1746580435542,137.7,149.06,149.02,6.71050865]
[1746580437215,137.7,149.06,149.02,23.48678029]
[1746580440038,137.7,149.1,149.02,23.48678029]
[1746580440219,137.7,149.09,149.02,23.48678029]
[1746580441943,144.40743687,149.09,149.02,6.71050865]
[1746580445213,137.7,149.09,149.02,6.71050865]
[1746580445414,137.7,149.08,149.02,6.71050865]
[1746580447336,137.7,149.07,149.02,6.71050865]
[1746580447538,137.7,149.06,149.02,23.75050865]
[1746580447840,137.7,149.06,149.02,17.04]
[1746580448016,137.7,149.05,149.02,17.04]
[1746580448332,137.7,149.05,149.01,17.06]
[1746580448912,137.7,149.05,149.01,23.77076998]
[1746580449315,144.40920352,149.05,149.01,17.06]
[1746580449553,137.7,149.04,149.01,17.06]
[1746580449742,137.7,149.03,149.01,17.06]
[1746580453539,144.41023282,149.03,148.98,6.71229157]
[1746580453727,137.7,149.02,148.98,6.71229157]
[1746580454242,137.7,149.01,148.97,275.23274786]
[1746580454558,163.7,149.01,148.97,17.06]
[1746580455432,163.7,149.01,148.97,23.77262441]
[1746580457419,137.7,149.0,148.97,23.77262441]
[1746580457638,137.7,148.99,148.97,23.77262441]
[1746580465752,137.7,149.06,148.97,47.1474268]
[1746580465927,137.7,149.06,148.98,1.5189]
[1746580466126,137.7,149.06,148.99,17.02]
[1746580466427,26.0,149.05,148.99,17.02]
[1746580467247,137.7,149.06,149.0,18.64964886]
[1746580468122,137.7,149.06,149.01,23.48835648]
[1746580468323,137.7,149.06,149.02,17.02]
[1746580471748,137.7,149.06,149.03,6.71005837]
[1746580479735,137.7,149.06,149.04,17.0]
[1746580480036,137.7,149.1,149.04,18.6136]
[1746580480250,137.7,149.1,149.05,4.98791176]
[1746580481640,137.7,149.1,149.05,23.482053]
[1746580482737,137.7,149.1,149.05,57.027843]
[1746580483962,137.7,149.1,149.05,23.482053]
[1746580485277,137.7,149.1,149.05,23.689158]
[1746580486864,137.7,149.1,149.05,40.462053]
[1746580488156,163.7,149.1,149.05,6.709158]
[1746580488662,137.7,149.09,149.05,6.709158]
[1746580491169,137.7,149.09,149.05,23.482053]
[1746580492351,137.7,149.09,149.05,40.482053]
[1746580496951,137.7,149.09,149.05,46.943353]